bitfinex/quotes_ETHUSD_20220311
["timestamp","ask_amount","ask_price","bid_price","bid_amount"]
[1646958599093,0.93892664,2597.3,2596.6,0.0795367]
[1646958599392,0.0041981,2596.8,2596.7,0.07528449]
[1646958600192,0.01248398,2597.5,2596.7,0.07528449]
[1646958600392,0.00402843,2596.9,2596.5,4.45551203]
[1646958600592,0.00402843,2596.9,2596.5,0.9545]
[1646958600849,0.00402843,2596.9,2596.5,0.762]
[1646958601451,0.95233149,2597.2,2596.5,0.762]
[1646958601648,0.00402846,2596.8,2596.5,0.762]
[1646958602552,0.01248398,2597.5,2596.5,0.762]
[1646958602750,0.01248398,2597.5,2596.7,0.96297]
[1646958602953,5.17e-06,2596.8,2596.7,1.26297]
[1646958603154,0.01248398,2597.5,2596.8,0.00079483]
[1646958603352,0.01248398,2597.5,2597.2,3.0]
[1646958603553,0.99219623,2598.8,2597.3,3.662]
[1646958603752,0.99219623,2598.8,2597.6,0.96261]
[1646958604150,0.99219623,2598.8,2597.6,1.42461]
[1646958604350,0.99219623,2598.8,2597.7,0.3]
[1646958604594,0.25,2598.9,2597.7,0.30101203]
[1646958604793,1.06041372,2598.6,2597.7,0.00101203]
[1646958605099,1.06041372,2598.6,2597.6,0.762]
[1646958605495,1.06041372,2598.6,2597.7,2.88759]
[1646958605693,1.06041372,2598.6,2597.7,1.92505]
[1646958606098,1.06041372,2598.6,2597.6,0.762]
[1646958606499,1.06041372,2598.6,2597.7,0.96263]
[1646958606699,1.06041372,2598.6,2597.7,1.42463]
[1646958606897,0.25,2598.9,2597.8,3.5]
[1646958607103,0.25,2598.9,2597.9,0.6543]
[1646958607400,0.25,2598.9,2598.0,0.3]
[1646958607602,0.00238347,2598.5,2598.0,0.3]
[1646958607801,0.00238347,2598.5,2597.9,0.9543]
[1646958608000,0.97172044,2598.4,2597.9,0.9543]
[1646958608249,0.97172044,2598.4,2597.6,0.19331203]
[1646958608250,0.95221891,2598.0,2597.6,0.19331203]
[1646958608450,0.95221891,2598.0,2597.4,0.00101203]
[1646958608655,1.10406807,2597.6,2597.2,0.00101203]
[1646958608848,3.2,2597.5,2596.8,0.00079483]
[1646958609048,0.88116196,2596.9,2596.8,0.00079483]
[1646958609250,0.88116196,2596.9,2596.8,1.10526214]
[1646958609449,0.88116196,2596.9,2596.8,2.20972945]
[1646958609850,1.84450196,2596.9,2596.8,2.20972945]
[1646958610450,1.84450196,2596.9,2595.9,0.01983504]
[1646958610451,0.92746469,2596.0,2595.9,0.01983504]
[1646958610856,0.6,2595.9,2595.4,0.09165984]
[1646958611055,3.5,2595.8,2595.4,0.09165984]
[1646958611255,1.17243853,2596.0,2595.8,0.00434463]
[1646958611455,0.04773237,2595.9,2595.8,0.00434463]
[1646958611856,2.93930117,2595.9,2595.8,0.00434463]
[1646958612106,0.92746469,2596.0,2595.6,0.0401006]
[1646958612508,3.5,2595.9,2595.7,0.00402202]
[1646958612704,0.92746469,2596.0,2595.7,0.00402202]
[1646958612908,0.96365,2595.9,2595.7,0.00402202]
[1646958613307,0.96365,2595.9,2595.2,0.03448018]
[1646958613308,6.7419975,2595.8,2595.2,0.03448018]
[1646958613510,8.9201985,2595.8,2594.8,0.0472374]
[1646958613707,8.9201985,2595.8,2594.3,0.11428333]
[1646958613708,0.0524404,2595.6,2594.4,0.02848254]
[1646958613911,0.96438,2595.4,2594.3,0.04922924]
[1646958614111,0.96439,2595.1,2594.3,0.05014208]
[1646958614307,0.0120675,2594.8,2594.4,0.04092649]
[1646958614512,4.56384777,2594.7,2594.1,0.01314344]
[1646958614706,0.05235981,2594.6,2593.7,0.35526684]
[1646958614908,3.5,2594.6,2593.7,0.35526684]
[1646958615106,0.05192846,2594.5,2593.7,0.35526684]
[1646958615316,0.0126703,2594.1,2593.5,0.0248968]
[1646958615513,3.0,2593.9,2593.0,0.013515]
[1646958615749,0.01277256,2593.6,2593.0,0.013515]
[1646958615954,0.01277256,2593.6,2593.0,0.01676284]
[1646958615955,0.25,2593.3,2593.0,0.01676284]
[1646958616151,0.712,2593.3,2593.0,0.01676284]
[1646958616352,0.712,2593.3,2592.7,0.0368086]
[1646958616353,4.165,2593.1,2592.7,0.04377784]
[1646958616554,4.165,2593.1,2592.2,0.01530253]
[1646958616555,3.54282508,2593.0,2592.2,0.01530253]
[1646958616751,3.54282508,2593.0,2592.2,0.05971904]
[1646958616752,0.0543118,2592.9,2592.2,0.05971904]
[1646958616951,1.10930734,2592.6,2592.2,0.05971904]
[1646958617151,1.15560204,2592.6,2592.2,0.05971904]
[1646958617351,1.15560204,2592.6,2592.5,0.00433723]
[1646958617551,1.15249008,2592.6,2592.5,0.00433723]
[1646958617753,0.25,2592.8,2592.5,0.00433723]
[1646958617958,2.16712802,2593.4,2592.5,0.00433723]
[1646958617959,0.992,2593.2,2592.5,0.00433723]
[1646958618160,3.55385146,2593.8,2592.4,0.0185904]
[1646958618355,3.55385146,2593.8,2592.5,0.1928]
[1646958618356,0.05369786,2593.7,2592.5,0.1928]
[1646958618557,0.25,2593.5,2592.6,0.00100835]
[1646958618755,0.9678338,2593.2,2592.7,0.1928]
[1646958618953,0.9678338,2593.2,2592.6,0.1928]
[1646958619253,0.9678338,2593.2,2592.6,0.23392864]
[1646958619697,0.9651049,2592.8,2592.6,0.04112864]
[1646958619898,1.08298067,2592.6,2592.4,0.01735061]
[1646958620095,1.08298067,2592.6,2592.1,0.00998355]
[1646958620096,3.5,2592.5,2592.1,0.00998355]
[1646958620296,0.19393037,2592.7,2592.1,0.00998355]
[1646958620497,0.19393037,2592.6,2592.1,0.00998355]
[1646958620900,0.25,2592.8,2592.2,0.1928]
[1646958621103,0.19393037,2593.0,2592.2,0.1928]
[1646958621301,0.85359176,2593.7,2592.2,0.1928]
[1646958621599,3.5,2593.8,2592.2,0.1928]
[1646958621600,1.00318976,2592.9,2592.3,0.00100835]
[1646958621802,1.21484,2593.5,2592.4,0.1928]
[1646958622000,3.5,2593.4,2592.2,0.1928]
[1646958622201,3.5,2593.4,2592.2,0.22863359]
[1646958622402,0.19393037,2593.4,2592.2,0.22863359]
[1646958622602,0.992,2593.2,2592.2,0.03583359]
[1646958622902,0.91462101,2592.4,2592.0,0.05392896]
[1646958623102,0.96259262,2592.4,2592.0,0.05392896]
[1646958623351,0.04853158,2592.3,2592.1,0.00167987]
[1646958624149,1.16462101,2592.4,2592.0,0.00392896]
[1646958624450,0.0024742,2592.3,2592.0,0.00392896]
[1646958625349,1.16462101,2592.4,2592.0,0.00392896]
[1646958625750,0.00412237,2592.3,2592.2,0.00129494]
[1646958625959,3.50412237,2592.3,2592.2,0.00129494]
[1646958626457,3.50412237,2592.3,2592.2,9.494e-05]
[1646958626659,3.2,2592.2,2590.7,0.13011234]
[1646958626859,4.0111796,2592.1,2590.7,0.08502626]
[1646958627100,1.93113,2591.7,2591.4,0.0164957]
[1646958627298,0.05372349,2591.6,2591.4,0.0164957]
[1646958627598,0.85128999,2591.5,2591.4,0.0164957]
[1646958627797,2.9,2591.4,2591.2,0.0037754]
[1646958627997,0.05025166,2591.3,2591.2,0.0037754]
[1646958628400,2.28096812,2591.2,2591.1,0.0190724]
[1646958628601,2.44296812,2591.2,2591.0,0.03976996]
[1646958628798,0.25,2591.4,2590.5,0.02728012]
[1646958629198,0.25,2591.4,2590.4,0.07704886]
[1646958629199,0.19393037,2591.3,2590.4,0.05432898]
[1646958629398,1.02877637,2590.8,2590.4,0.05432898]
[1646958629697,0.04721392,2591.3,2590.4,0.05432898]
[1646958629897,0.04721392,2591.3,2590.0,3.02689886]
[1646958630109,1.0,2591.6,2590.7,2.98904722]
[1646958630300,0.25,2591.9,2590.7,3.28904722]
[1646958630502,0.25,2591.9,2590.7,2.23006]
[1646958630757,0.81026084,2591.7,2590.5,1.93036]
[1646958630948,0.81026084,2591.7,2590.8,0.96518]
[1646958631150,3.75,2591.9,2590.8,1.26518]
[1646958631347,0.25,2591.9,2590.8,4.25422722]
[1646958631550,0.25,2591.9,2591.0,2.98904722]
[1646958631551,0.0024894,2591.6,2591.0,2.98904722]
[1646958631747,0.0024894,2591.6,2591.0,3.28904722]
[1646958631946,0.0024894,2591.6,2591.0,5.25394722]
[1646958632350,0.0024894,2591.6,2591.3,2.98904722]
[1646958632551,1.0,2592.5,2591.5,2.98904722]
[1646958632750,1.0,2592.5,2591.8,2.98904722]
[1646958632948,0.992,2592.9,2591.8,2.98904722]
[1646958633148,0.992,2592.9,2591.8,3.28904722]
[1646958633346,0.25,2593.0,2591.8,4.29434662]
[1646958633347,1.04815032,2592.8,2591.8,4.29434662]
[1646958633547,1.04815032,2592.8,2591.8,1.2699894]
[1646958633752,1.114591,2592.4,2591.9,0.9647017]
[1646958633949,1.114591,2592.4,2591.8,2.2346994]
[1646958634348,1.114591,2592.4,2591.8,0.3052994]
[1646958634349,0.5431616,2592.3,2591.8,0.3052994]
[1646958634997,0.5431616,2592.3,2591.8,0.0052994]
[1646958635198,0.00248965,2592.2,2591.8,0.3052994]
[1646958635397,0.00248965,2592.2,2591.8,0.0052994]
[1646958635599,0.00248965,2592.2,2591.8,0.3052994]
[1646958635802,0.00248965,2592.2,2592.0,0.00099728]
[1646958636203,0.5301,2592.3,2592.0,0.00099728]
[1646958636407,0.5301,2592.3,2592.0,0.00629668]
[1646958636408,0.00434372,2592.2,2592.0,0.00629668]
[1646958637408,0.5301,2592.3,2592.0,0.00629668]
[1646958638440,0.5301,2592.3,2591.8,0.0105988]
[1646958638641,0.2801,2592.3,2591.8,0.0105988]
[1646958638841,0.01095278,2592.9,2591.8,0.0105988]
[1646958639045,0.01095278,2592.9,2591.8,0.0115588]
[1646958639443,0.25,2593.0,2591.8,0.0115588]
[1646958639843,0.94601473,2592.8,2592.0,0.9646858]
[1646958640044,0.00436505,2592.5,2592.0,0.9646858]
[1646958640243,0.00436505,2592.5,2592.0,1.2646858]
[1646958640443,0.00436505,2592.5,2592.2,0.00097121]
[1646958641048,0.25,2593.0,2592.2,0.00097121]
[1646958641349,0.25,2593.0,2592.2,0.01157001]
[1646958642192,0.94782237,2592.9,2592.2,0.01157001]
[1646958642593,1.10432389,2592.5,2592.2,0.01157001]
[1646958642794,3.5,2592.8,2591.8,0.00096]
[1646958642795,0.02314002,2592.1,2591.8,0.00096]
[1646958642992,0.02314002,2592.1,2591.4,0.00096]
[1646958642993,0.27314002,2592.1,2591.4,0.00096]
[1646958643193,0.27314002,2592.1,2591.3,0.00179751]
[1646958643391,0.2840928,2592.1,2591.1,0.00096]
[1646958643892,0.8236746,2591.7,2591.3,0.00430738]
[1646958644693,0.2840928,2592.1,2591.0,4.7870258]
[1646958644895,0.00425539,2591.7,2591.3,0.00425607]
[1646958645296,0.00425539,2591.7,2591.3,2.99330329]
[1646958645762,0.00425539,2591.7,2591.3,3.99330329]
[1646958645954,0.02314002,2592.1,2591.3,3.28904722]
[1646958646152,0.00425539,2591.7,2591.3,4.29330329]
[1646958646351,0.00425539,2591.7,2591.4,2.894645]
[1646958646754,0.00425539,2591.7,2591.5,0.3]
[1646958647248,0.27314002,2592.1,2591.5,0.3]
[1646958647450,0.00425544,2591.7,2591.5,1.2649145]
[1646958647650,0.00425544,2591.7,2591.6,1.26491]
[1646958648150,0.00425544,2591.7,2591.6,4.76491]
[1646958648450,0.02314002,2592.1,2591.7,2.8941554]
[1646958648650,0.00405835,2591.8,2591.7,1.92944]
[1646958648849,0.00405835,2591.8,2591.7,2.89416]
[1646958649051,0.00405835,2591.8,2591.6,5.0731408]
[1646958649249,0.00405835,2591.8,2591.6,1.25]
[1646958649498,0.02314002,2592.1,2591.6,0.25]
[1646958649694,0.02314002,2592.1,2591.5,0.9649413]
[1646958649994,0.00405832,2591.8,2591.5,0.9649413]
[1646958650293,0.01138148,2591.7,2591.4,2.929795]
[1646958650495,0.01138148,2591.7,2591.4,1.929795]
[1646958650899,0.01543981,2591.7,2591.4,1.929795]
[1646958651500,0.01543981,2591.7,2591.3,2.93389898]
[1646958651903,0.01138148,2591.7,2591.3,2.92984]
[1646958652105,0.01545306,2591.7,2591.3,1.93391223]
[1646958653345,0.01545306,2591.7,2591.3,2.89896703]
[1646958654348,0.01545306,2591.7,2591.3,0.00407223]
[1646958654651,0.01545306,2591.7,2591.3,0.96913393]
[1646958655248,0.01545306,2591.7,2591.3,2.89874393]
[1646958655450,0.01545306,2591.7,2591.3,7.34979115]
[1646958655651,0.01545306,2591.7,2591.4,1.15753]
[1646958656452,0.01545306,2591.7,2591.5,1.9295606]
[1646958657094,0.01138148,2591.7,2591.5,1.9295606]
[1646958657894,0.01138148,2591.7,2591.5,2.8944706]
[1646958658295,0.01138148,2591.7,2591.5,1.9295606]
[1646958659696,0.01138148,2591.7,2591.6,0.0843446]
[1646958660300,1.0,2591.8,2591.6,0.0843446]
[1646958660602,1.0,2591.8,2591.7,0.07274566]
[1646958661246,1.0,2591.8,2591.5,0.08158755]
[1646958661649,1.0,2591.8,2591.2,1.93006]
[1646958661650,2.4,2591.7,2591.2,1.93006]
[1646958661848,0.01095278,2591.3,2591.1,1.9302544]
[1646958662048,1.15871593,2591.2,2590.8,0.00096]
[1646958662247,1.15871593,2591.2,2590.6,7.41135298]
[1646958662248,1.40871593,2591.2,2590.6,7.41135298]
[1646958662649,1.40871593,2591.2,2590.6,0.08135298]
[1646958662849,1.40871593,2591.2,2590.6,2.01196878]
[1646958663048,1.40871593,2591.2,2590.6,1.9306158]
[1646958663249,1.45637162,2591.2,2590.4,0.0128826]
[1646958663949,0.01095278,2591.1,2590.4,0.0128826]
[1646958664155,0.93358144,2590.8,2590.4,0.0128826]
[1646958664594,0.94453422,2590.8,2590.4,0.0128826]
[1646958664797,3.5,2590.7,2590.4,0.0128826]
[1646958665000,0.98039853,2590.8,2590.4,0.0128826]
[1646958665198,0.01095278,2590.5,2590.4,0.0128826]
[1646958665400,0.25,2591.2,2590.4,0.0128826]
[1646958665401,3.94393037,2591.5,2590.4,0.0128826]
[1646958665599,1.64376658,2591.4,2590.4,0.0128826]
[1646958665802,0.00094508,2591.1,2590.4,4.1799439]
[1646958666000,0.00094508,2591.1,2590.5,0.0895935]
[1646958666200,0.00094508,2591.1,2590.6,0.462]
[1646958666402,0.00094508,2591.1,2590.7,0.07867562]
[1646958666602,0.00094508,2591.1,2590.8,1.93019]
[1646958666803,0.00094508,2591.1,2590.7,2.00892892]
[1646958667002,0.82278421,2590.9,2590.7,2.00892892]
[1646958667205,0.82278421,2590.9,2590.7,1.9302533]
[1646958667405,0.82278421,2590.9,2590.6,3.8]
[1646958668260,0.87037127,2590.9,2590.6,3.8]
[1646958669847,0.87037127,2590.9,2590.6,3.80437098]
[1646958669848,0.04370339,2590.8,2590.6,3.80437098]
[1646958670049,0.04370339,2590.8,2590.6,3.88943289]
[1646958670252,0.96574,2590.7,2590.6,3.83275361]
[1646958670451,0.82373004,2590.9,2590.6,2.38503136]
[1646958670649,0.82373004,2590.9,2590.6,2.38066038]
[1646958670860,3.3,2590.8,2590.6,0.00186143]
[1646958671356,0.96589,2590.7,2590.6,0.00186143]
[1646958671754,1.93178,2590.8,2590.4,0.0128826]
[1646958672000,2.18178,2590.8,2590.5,0.00186147]
[1646958672405,0.96578,2590.6,2590.5,0.00186147]
[1646958673002,1.13472141,2590.5,2590.4,0.0128826]
[1646958673404,1.13472141,2590.5,2590.4,0.01474414]
[1646958673604,1.13472141,2590.5,2590.4,4.414e-05]
[1646958674006,3.19119358,2590.5,2590.4,4.414e-05]
[1646958674206,3.3,2590.4,2590.2,0.0371767]
[1646958674407,3.02272217,2590.3,2590.2,7.67e-05]
[1646958674607,6.0353362,2590.3,2589.7,0.04381504]
[1646958674807,3.3,2590.0,2589.6,0.0296066]
[1646958675008,3.3,2590.0,2589.3,0.0150316]
[1646958675009,2.05647217,2589.9,2589.3,0.0150316]
[1646958675206,2.05647217,2589.9,2589.1,0.01428062]
[1646958675207,1.59447217,2589.8,2589.1,0.01428062]
[1646958675411,0.96645,2589.4,2588.5,0.00096]
[1646958675607,0.47419148,2589.7,2588.5,0.00096]
[1646958675608,1.67861,2589.3,2589.0,0.03556396]
[1646958675860,0.462,2589.6,2589.5,2.12139]
[1646958676658,1.34798196,2589.6,2589.5,2.12139]
[1646958678256,0.96655,2589.7,2589.5,2.12139]
[1646958678459,0.25,2589.8,2589.5,2.12139]
[1646958680399,0.00094613,2589.6,2589.5,2.12223145]
[1646958680804,0.00094613,2589.6,2589.5,2.31523145]
[1646958681603,4.613e-05,2589.6,2589.5,2.31523145]
[1646958681804,0.25,2590.3,2589.7,0.9655996]
[1646958682005,0.25,2590.3,2589.8,0.193]
[1646958682303,0.25,2590.3,2589.9,0.07086599]
[1646958682502,0.25,2590.3,2590.0,0.193]
[1646958682704,0.25,2590.3,2590.0,1.15849]
[1646958682902,0.25,2590.3,2590.0,1.16278822]
[1646958683112,0.2186,2590.5,2590.1,0.0803371]
[1646958683353,0.25,2591.0,2590.3,0.09056858]
[1646958683556,0.25,2591.0,2590.4,0.193]
[1646958683750,0.25,2591.0,2590.4,0.27810661]
[1646958684252,0.25,2591.0,2590.4,0.28240468]
[1646958684652,0.25,2591.0,2590.4,1.24771468]
[1646958684853,0.00429628,2591.5,2590.6,0.07829062]
[1646958685059,2.58437873,2591.8,2590.7,3.6548]
[1646958685060,1.58437873,2591.8,2590.7,3.6548]
[1646958685252,1.0,2591.8,2590.9,0.08206222]
[1646958685456,0.27314002,2592.1,2590.9,0.08206222]
[1646958685457,9.632e-05,2591.5,2591.1,7.3]
[1646958685659,9.632e-05,2591.5,2591.4,3.07821572]
[1646958685857,0.02314002,2592.1,2591.5,0.0896066]
[1646958686056,0.02314002,2592.1,2591.7,0.08450175]
[1646958686358,0.02314002,2592.1,2591.8,0.6548]
[1646958686559,0.02314002,2592.1,2591.9,0.09025598]
[1646958686757,0.02314002,2592.1,2592.0,0.6548]
[1646958687193,0.02314002,2592.1,2592.0,0.462]
[1646958688894,0.02314002,2592.1,2591.9,0.09025598]
[1646958689101,0.02314002,2592.1,2591.6,0.07371565]
[1646958689294,0.02314002,2592.1,2591.7,0.96492]
[1646958689995,0.02314002,2592.1,2591.8,0.07498052]
[1646958690294,0.00415539,2592.0,2591.8,0.07498052]
[1646958690759,0.01816713,2592.0,2591.9,0.02467647]
[1646958690955,0.01816713,2592.0,2591.8,0.02562759]
[1646958691150,0.01401174,2592.0,2591.8,0.02562759]
[1646958692351,0.01401174,2592.0,2591.7,0.98969311]
[1646958692553,0.0183121,2592.0,2591.7,0.98969311]
[1646958693151,0.92943637,2592.3,2591.7,0.98969311]
[1646958693152,0.05,2592.3,2591.7,0.98969311]
[1646958693355,1.0,2593.4,2591.8,7.18018788]
[1646958693559,1.58950473,2593.4,2592.2,0.01227838]
[1646958693755,0.25,2593.3,2592.4,0.96441]
[1646958693953,0.25,2593.3,2592.6,0.07374346]
[1646958694155,0.25,2593.3,2592.3,0.00096]
[1646958694156,0.29356383,2593.3,2592.3,0.00096]
[1646958694354,2.55807138,2593.2,2592.3,0.00096]
[1646958694605,0.05251359,2593.0,2592.1,0.00096]
[1646958694798,0.05251359,2593.0,2591.9,0.00096]
[1646958695004,1.84327261,2592.9,2591.8,0.20859628]
[1646958695199,0.2541585,2592.9,2591.8,3.70955628]
[1646958695399,0.2541585,2592.9,2591.9,0.08067682]
[1646958695598,0.2541585,2592.9,2592.1,1.04727069]
[1646958695805,0.0041585,2592.9,2592.3,0.0856644]
[1646958696003,0.25,2593.5,2592.4,0.462]
[1646958696208,0.25,2593.5,2592.5,0.462]
[1646958696209,1.13111423,2593.4,2592.5,0.462]
[1646958696505,0.00415866,2592.6,2592.5,2.39076]
[1646958696702,0.00415866,2592.6,2592.5,3.35512]
[1646958696904,0.00415866,2592.6,2592.5,2.39076]
[1646958697202,0.05560984,2593.3,2592.5,2.39076]
[1646958697403,0.05560984,2593.3,2592.7,0.96448]
[1646958697606,0.06243643,2593.4,2592.7,1.9289583]
[1646958697804,0.06243643,2593.4,2592.8,3.6551683]
[1646958698263,0.05956078,2593.4,2592.8,3.6551683]
[1646958698452,0.05794529,2593.4,2592.8,3.6551683]
[1646958698653,1.39193773,2593.5,2592.9,1.92871]
[1646958698857,1.39193773,2593.5,2593.0,0.96435]
[1646958699054,0.06441685,2593.4,2593.0,1.92871]
[1646958699256,1.39193773,2593.5,2593.0,1.92871]
[1646958699455,1.39193773,2593.5,2593.0,2.89311]
[1646958699656,0.0554499,2593.4,2593.0,2.89311]
[1646958699855,0.0039918,2593.3,2593.0,2.89311]
[1646958700254,0.0039918,2593.3,2593.1,0.9643921]
[1646958700461,3.0,2593.2,2593.0,0.96435]
[1646958700760,0.0554499,2593.4,2592.9,3.86292438]
[1646958700761,0.0554499,2593.4,2592.9,2.23421438]
[1646958701468,0.06383717,2593.7,2593.0,4.8217207]
[1646958701662,0.06383717,2593.7,2593.0,6.7506307]
[1646958701863,0.06383717,2593.7,2593.1,0.96434]
[1646958702095,0.06383717,2593.7,2593.0,1.92868]
[1646958702296,1.17909959,2593.7,2593.0,1.92868]
[1646958702498,1.17909959,2593.7,2593.1,0.9644]
[1646958702902,0.91702564,2593.3,2592.9,2.19002099]
[1646958703103,0.91702564,2593.3,2592.9,2.42706438]
[1646958703301,0.91702564,2593.3,2592.9,0.30551438]
[1646958704303,0.05419674,2593.2,2592.9,0.30551438]
[1646958704504,0.05419674,2593.2,2592.9,0.00551438]
[1646958704703,0.05819514,2593.2,2592.9,0.00551438]
[1646958705104,0.0039984,2593.2,2592.9,0.00551438]
[1646958705758,0.25,2593.4,2593.1,0.06416507]
[1646958705950,0.00419366,2593.2,2593.1,0.06416507]
[1646958706852,1.33666221,2593.4,2593.1,0.06416507]
[1646958707155,0.00419359,2593.3,2593.1,3.86416507]
[1646958707353,0.00419359,2593.3,2593.1,4.16416507]
[1646958707555,0.00419359,2593.3,2593.2,0.462]
[1646958707754,0.00419359,2593.3,2593.2,0.5401468]
[1646958707952,0.05780576,2593.9,2593.2,0.5401468]
[1646958708154,0.05780576,2593.9,2593.3,1.92819]
[1646958708354,0.00419353,2593.4,2593.3,2.22819]
[1646958708657,0.00419353,2593.4,2593.3,3.65429]
[1646958708856,0.00419353,2593.4,2593.3,4.65429]
[1646958709052,0.00419353,2593.4,2593.3,6.5824752]
[1646958709260,0.57863381,2594.1,2593.3,7.5465352]
[1646958709506,8.435e-05,2593.5,2593.4,1.92781]
[1646958709805,8.435e-05,2593.5,2593.4,2.38981]
[1646958710001,8.435e-05,2593.5,2593.4,3.38981]
[1646958710402,0.91400207,2594.7,2593.4,4.38981]
[1646958710607,0.91400207,2594.7,2593.5,0.00096]
[1646958710806,0.91400207,2594.7,2593.8,0.96391]
[1646958711009,3.0,2594.5,2593.7,1.19426328]
[1646958711208,3.0,2594.5,2593.8,0.3]
[1646958711209,0.05784072,2594.4,2593.8,0.3]
[1646958711607,0.84327519,2594.1,2593.7,0.3]
[1646958712808,0.84327519,2594.1,2593.7,0.762]
[1646958713262,0.00429408,2594.0,2593.7,2.690069]
[1646958713653,0.00429408,2594.0,2593.7,3.690069]
[1646958714052,0.84327519,2594.1,2593.5,2.3659827]
[1646958714252,0.84327519,2594.1,2593.6,0.462]
[1646958714253,0.00429411,2594.0,2593.6,0.462]
[1646958715054,0.00429411,2594.0,2593.7,0.96402]
[1646958715258,0.84327519,2594.1,2593.8,0.462]
[1646958715453,0.00429414,2593.9,2593.8,0.462]
[1646958716358,0.84327519,2594.1,2593.8,0.462]
[1646958716359,0.89425,2594.1,2593.8,0.462]
[1646958716759,0.00429411,2594.0,2593.8,0.462]
[1646958717206,0.00429411,2594.0,2593.8,0.712]
[1646958717607,0.89425,2594.1,2593.8,0.712]
[1646958717807,0.00416526,2594.0,2593.8,0.712]
[1646958718313,3.0,2593.9,2593.3,0.00096]
[1646958718509,3.55679999,2594.0,2593.1,3.80096]
[1646958718510,3.06368074,2593.7,2593.1,3.80096]
[1646958718711,0.06263327,2593.6,2593.1,3.8]
[1646958718911,0.31263327,2593.6,2593.1,3.8]
[1646958719118,0.26263327,2593.6,2593.1,3.8]
[1646958719316,1.16415377,2593.6,2593.1,3.8]
[1646958719712,1.1015205,2593.6,2593.1,4.1]
[1646958719912,0.05725442,2593.5,2593.1,4.1]
[1646958720415,0.05725442,2593.5,2593.2,0.13131877]
[1646958720870,3.0,2593.3,2593.2,0.13131877]
[1646958721469,0.05725442,2593.5,2593.2,0.13131877]
[1646958722074,2.95,2593.3,2593.2,0.13131877]
[1646958724174,0.05725442,2593.5,2593.2,0.13131877]
[1646958724379,0.20365597,2593.6,2593.3,0.9641]
[1646958724603,0.00365597,2593.6,2593.4,0.462]
[1646958724799,0.00365597,2593.6,2593.4,0.89331877]
[1646958725002,0.06012203,2594.0,2593.5,0.96401]
[1646958725300,2.95,2594.3,2593.6,0.96398]
[1646958725301,1.16521139,2594.2,2593.6,0.96398]
[1646958725501,0.05188111,2594.1,2593.6,0.96398]
[1646958725699,0.05188111,2594.1,2593.7,0.3]
[1646958726406,0.05188111,2594.1,2593.5,1.3]
[1646958726603,0.05188111,2594.1,2593.5,0.3]
[1646958726803,0.05188111,2594.1,2593.4,0.43131877]
[1646958727404,0.05188111,2594.1,2593.5,1.42608]
[1646958727608,0.05188111,2594.1,2593.6,0.3]
[1646958727806,0.05188111,2594.1,2593.6,0.43131877]
[1646958728257,0.05188111,2594.1,2593.6,0.13131877]
[1646958728851,2.95418385,2594.0,2593.6,0.13131877]
[1646958729252,0.06262723,2593.9,2593.6,0.13131877]
[1646958729552,0.00418385,2594.0,2593.6,0.13131877]
[1646958729754,2.95,2594.1,2593.6,0.13131877]
[1646958729950,0.00418391,2593.9,2593.6,0.13131877]
[1646958730149,0.84696701,2593.8,2593.6,0.43131877]
[1646958731152,0.00418395,2593.8,2593.6,0.43131877]
[1646958732204,0.89648743,2594.1,2593.6,0.89331877]
[1646958732409,0.00398401,2593.8,2593.6,0.89331877]
[1646958733309,0.89648743,2594.1,2593.6,0.89331877]
[1646958733510,0.00398401,2593.8,2593.6,0.89331877]
[1646958734510,0.05468859,2594.0,2593.6,0.89331877]
[1646958734913,0.00398401,2593.8,2593.6,0.89331877]
[1646958735759,0.05468859,2594.0,2593.6,0.89873501]
[1646958735951,0.05468859,2594.0,2593.8,0.03324758]
[1646958736151,0.0007704,2593.7,2593.6,0.46979859]
[1646958737750,0.0007704,2593.7,2593.6,0.93179859]
[1646958738154,0.0007704,2593.7,2593.6,4.43179859]
[1646958738358,0.0007704,2593.7,2593.6,0.3]
[1646958738554,0.0007704,2593.7,2593.6,1.7162475]
[1646958739909,0.0007704,2593.7,2593.6,1.7662475]
[1646958740116,0.0007704,2593.7,2593.6,1.96017787]
[1646958740318,0.69883844,2595.3,2593.6,1.96017787]
[1646958740319,3.84153844,2595.5,2593.7,3.5]
[1646958740518,6.2117,2595.6,2594.2,1.927]
[1646958740519,0.06362532,2595.3,2594.2,1.927]
[1646958740714,1.59176999,2595.2,2594.4,0.06675903]
[1646958740915,1.59176999,2595.2,2594.7,1.0]
[1646958741114,1.59176999,2595.2,2594.8,0.462]
[1646958741315,1.59176999,2595.2,2594.8,1.42545]
[1646958741515,0.05221113,2595.7,2594.8,3.75069]
[1646958741717,1.59146234,2595.6,2595.1,0.3]
[1646958741914,1.59146234,2595.6,2595.2,0.462]
[1646958742516,0.06365181,2596.0,2595.2,0.462]
[1646958742720,1.59136386,2595.9,2595.2,0.462]
[1646958743117,0.06302594,2595.8,2595.3,0.96327]
[1646958743560,0.06877091,2596.0,2595.3,0.96327]
[1646958743857,0.25,2596.2,2595.4,0.462]
[1646958743858,0.0622808,2595.8,2595.4,0.462]
[1646958744257,0.07744439,2596.0,2595.5,0.96324]
[1646958744458,0.00429609,2595.8,2595.6,0.462]
[1646958745057,0.00429609,2595.8,2595.6,1.72518]
[1646958745263,0.00429609,2595.8,2595.7,0.96311]
[1646958745564,0.07438566,2596.9,2595.7,7.81384]
[1646958745863,0.01718095,2596.3,2595.8,0.4925]
[1646958746162,0.01718095,2596.3,2596.0,1.0]
[1646958746462,0.01718095,2596.3,2596.1,7.04326]
[1646958746662,0.06074169,2596.7,2596.1,7.04328]
[1646958746869,9.492e-05,2596.3,2596.2,3.8]
[1646958747108,9.492e-05,2596.3,2596.2,10.043]
[1646958747309,9.492e-05,2596.3,2596.2,50.48975125]
[1646958747508,0.00997816,2596.7,2596.3,4.46265]
[1646958747708,0.06120331,2597.4,2596.4,10.043]
[1646958747912,1.59052969,2597.3,2596.7,0.96265]
[1646958748110,1.59052969,2597.3,2596.8,3.962]
[1646958748316,0.05450471,2597.9,2596.9,9.35548042]
[1646958748509,0.05450471,2597.9,2597.1,1.0]
[1646958748710,0.05838619,2598.2,2597.2,4.32115467]
[1646958748910,0.0782116,2598.1,2597.3,1.462]
[1646958749108,0.0782116,2598.1,2597.3,2.4244065]
[1646958749309,3.94903301,2598.3,2597.3,1.462]
[1646958749310,0.00429877,2597.4,2597.3,1.462]